fUST/lending_fUST_20250724
["ID","MTS","AMOUNT","RATE_DAILY","PERIOD"]
[374469850,1753312245187,-460.0,0.00019452,2]
[374469851,1753312245196,-368.32373879,0.00019452,2]
[374469852,1753312245205,-1464.12,0.00019452,2]
[374469853,1753312245215,-460.0,0.00019452,2]
[374469854,1753312245224,-1278.79,0.00019452,2]
[374469855,1753312245234,-460.0,0.00019452,2]
[374469856,1753312245244,-460.0,0.00019452,2]
[374469857,1753312245254,-460.0,0.00019452,2]
[374469858,1753312245263,-460.0,0.00019452,2]
[374469859,1753312245274,-460.0,0.00019452,2]
[374469860,1753312245283,-460.0,0.00019452,2]
[374469861,1753312245294,-249.27,0.00019452,2]
[374469862,1753312245304,-460.0,0.00019452,2]
[374469863,1753312245313,-460.0,0.00019452,2]
[374469864,1753312245322,-460.0,0.00019452,2]
[374469865,1753312245332,-460.0,0.00019452,2]
[374469866,1753312245342,-460.0,0.00019452,2]
[374469867,1753312245351,-462.88119923,0.00019452,2]
[374469868,1753312245360,-861.74,0.00019452,2]
[374469869,1753312245370,-460.0,0.00019452,2]
[374469870,1753312245379,-460.0,0.00019452,2]
[374469871,1753312245388,-460.0,0.00019452,2]
[374469872,1753312245397,-460.0,0.00019452,2]
[374469873,1753312245407,-460.0,0.00019452,2]
[374469874,1753312245416,-460.0,0.00019452,2]
[374469875,1753312245426,-460.0,0.00019452,2]
[374469876,1753312245435,-460.0,0.00019452,2]
[374469877,1753312245444,-460.0,0.00019452,2]
[374469878,1753312245454,-460.0,0.00019452,2]
[374469879,1753312245463,-460.0,0.00019452,2]
[374469880,1753312245472,-460.0,0.00019452,2]
[374469881,1753312245482,-460.0,0.00019452,2]
[374469882,1753312245491,-917.78,0.00019452,2]
[374469883,1753312245500,-460.0,0.00019452,2]
[374469884,1753312245510,-460.0,0.00019452,2]
[374469885,1753312245519,-460.0,0.00019452,2]
[374469886,1753312245529,-460.0,0.00019452,2]
[374469887,1753312245539,-460.0,0.00019452,2]
[374469888,1753312245548,-460.0,0.00019452,2]
[374469889,1753312245557,-460.0,0.00019452,2]
[374469890,1753312245566,-1212.98,0.00019452,2]
[374469896,1753312245686,-800.45,0.00019452,2]
[374469897,1753312245698,-460.0,0.00019452,2]
[374469898,1753312245708,-460.0,0.00019452,2]
[374469899,1753312245717,-460.0,0.00019452,2]
[374469900,1753312245726,-460.0,0.00019452,2]
[374469901,1753312245735,-460.0,0.00019452,2]
[374469902,1753312245745,-460.0,0.00019452,2]
[374469903,1753312245755,-505.49,0.00019452,2]
[374469904,1753312245764,-460.0,0.00019452,2]
[374469905,1753312245774,-460.0,0.00019452,2]
[374469906,1753312245784,-460.0,0.00019452,2]
[374469907,1753312245794,-460.0,0.00019452,2]
[374469908,1753312245803,-460.0,0.00019452,2]
[374469909,1753312245812,-460.0,0.00019452,2]
[374469910,1753312245822,-460.0,0.00019452,2]
[374469911,1753312245831,-461.22566897,0.00019452,2]
[374469913,1753312245841,-460.0,0.00019452,2]
[374469914,1753312245850,-460.0,0.00019452,2]
[374469915,1753312245859,-460.0,0.00019452,2]
[374469916,1753312245869,-868.55,0.00019452,2]
[374469917,1753312245880,-460.0,0.00019452,2]
[374469918,1753312245889,-460.0,0.00019452,2]
[374469919,1753312245898,-460.0,0.00019452,2]
[374469920,1753312245908,-1124.01322793,0.00019721,2]
[374469921,1753312245917,-1000.0,0.00019721,2]
[374469922,1753312245927,-1000.0,0.00019721,2]
[374469923,1753312245936,-1000.0,0.00019721,2]
[374469924,1753312245946,-560.3256651,0.00019721,2]
[374469925,1753312245955,-1000.0,0.00019721,2]
[374469926,1753312245964,-500.0,0.00019721,2]
[374469927,1753312245974,-1000.0,0.00019721,2]
[374469928,1753312245983,-171.0,0.00019723,2]
[374469929,1753312245993,-420.0,0.00019723,2]
[374469930,1753312246003,-500.0,0.00019725,2]
[374469931,1753312246012,-500.0,0.00019725,2]
[374469932,1753312246022,-500.0,0.00019725,2]
[374469933,1753312246032,-448.67,0.00019725,2]
[374469934,1753312246042,-460.0,0.00019726,2]
[374469935,1753312246051,-460.0,0.00019726,2]
[374469936,1753312246060,-460.0,0.00019726,2]
[374469937,1753312246071,-427.84210958,0.00019726,2]
[374469938,1753312246080,-414.97501631,0.00019726,2]
[374469939,1753312246089,-460.0,0.00019726,2]
[374469940,1753312246099,-460.0,0.00019726,2]
[374469941,1753312246108,-460.0,0.00019726,2]
[374469942,1753312246118,-460.0,0.00019726,2]
[374469943,1753312246127,-460.0,0.00019726,2]
[374469944,1753312246137,-493.89382084,0.00019726,2]
[374469945,1753312246146,-460.0,0.00019726,2]
[374469946,1753312246155,-460.0,0.00019726,2]
[374469947,1753312246165,-460.0,0.00019726,2]
[374469948,1753312246175,-460.0,0.00019726,2]
[374469950,1753312246184,-460.0,0.00019726,2]
[374469951,1753312246193,-460.0,0.00019726,2]
[374469952,1753312246203,-460.0,0.00019726,2]
[374469953,1753312246212,-460.0,0.00019726,2]
[374469954,1753312246221,-460.0,0.00019726,2]
[374469955,1753312246230,-460.0,0.00019726,2]
[374469956,1753312246239,-460.0,0.00019726,2]
[374469957,1753312246249,-2615.42,0.00019726,2]
[374469958,1753312246258,-460.0,0.00019726,2]
[374469959,1753312246267,-468.29342776,0.00019726,2]
[374469960,1753312246277,-460.0,0.00019726,2]
[374469961,1753312246287,-460.0,0.00019726,2]
[374469962,1753312246296,-460.0,0.00019726,2]
[374469963,1753312246307,-460.0,0.00019726,2]
[374469964,1753312246316,-460.0,0.00019726,2]
[374469965,1753312246326,-3061.89,0.00019726,2]
[374469966,1753312246335,-1674.34,0.00019726,2]
[374469967,1753312246345,-460.0,0.00019726,2]
[374469968,1753312246355,-178.84507225,0.00019726,2]
[374469969,1753312246364,-460.0,0.00019726,2]
[374469970,1753312246373,-460.0,0.00019726,2]
[374469971,1753312246383,-460.0,0.00019726,2]
[374469972,1753312246392,-460.0,0.00019726,2]
[374469973,1753312246402,-460.0,0.00019726,2]
[374469974,1753312246411,-1464.12,0.00019726,2]
[374469975,1753312246420,-1278.79,0.00019726,2]
[374469976,1753312246430,-387.77337239,0.00019726,2]
[374469977,1753312246439,-460.0,0.00019726,2]
[374469978,1753312246448,-460.0,0.00019726,2]
[374469979,1753312246458,-460.0,0.00019726,2]
[374469980,1753312246468,-460.0,0.00019726,2]
[374469981,1753312246477,-460.0,0.00019726,2]
[374469982,1753312246486,-460.0,0.00019726,2]
[374469983,1753312246496,-460.0,0.00019726,2]
[374469984,1753312246505,-861.74,0.00019726,2]
[374469985,1753312246514,-460.0,0.00019726,2]
[374469986,1753312246524,-460.0,0.00019726,2]
[374469987,1753312246533,-460.0,0.00019726,2]
[374469988,1753312246543,-460.0,0.00019726,2]
[374469989,1753312246553,-460.0,0.00019726,2]
[374469990,1753312246563,-460.0,0.00019726,2]
[374469991,1753312246572,-460.0,0.00019726,2]
[374469992,1753312246582,-460.0,0.00019726,2]
[374469993,1753312246591,-460.0,0.00019726,2]
[374469994,1753312246600,-460.0,0.00019726,2]
[374469995,1753312246610,-917.78,0.00019726,2]
[374469996,1753312246619,-460.0,0.00019726,2]
[374469997,1753312246628,-460.0,0.00019726,2]
[374469998,1753312246637,-460.0,0.00019726,2]
[374469999,1753312246647,-460.0,0.00019726,2]
[374470000,1753312246656,-460.0,0.00019726,2]
[374470001,1753312246666,-460.0,0.00019726,2]
[374470002,1753312246676,-1212.98,0.00019726,2]
[374470003,1753312246686,-800.45,0.00019726,2]
[374470004,1753312246698,-476.40030117,0.00019726,2]
[374470005,1753312246709,-460.0,0.00019726,2]
[374470006,1753312246719,-460.0,0.00019726,2]
[374470007,1753312246728,-460.0,0.00019726,2]
[374470008,1753312246738,-460.0,0.00019726,2]
[374470009,1753312246748,-505.49,0.00019726,2]
[374470010,1753312246757,-460.0,0.00019726,2]
[374470011,1753312246766,-460.0,0.00019726,2]
[374470012,1753312246777,-460.0,0.00019726,2]
[374470013,1753312246786,-460.0,0.00019726,2]
[374470014,1753312246796,-460.0,0.00019726,2]
[374470015,1753312246805,-460.0,0.00019726,2]
[374470016,1753312246814,-460.0,0.00019726,2]
[374470017,1753312246825,-460.0,0.00019726,2]
[374470018,1753312246834,-460.0,0.00019726,2]
[374470019,1753312246847,-868.55,0.00019726,2]
[374470020,1753312246860,-460.0,0.00019726,2]
[374470021,1753312246874,-460.0,0.00019726,2]
[374470022,1753312246888,-1083.0,0.0001982,2]
[374470023,1753312246901,-160.0,0.00019891,2]
[374470024,1753312246912,-460.0,0.0002,2]
[374470025,1753312246926,-310.47202461,0.0002,2]
[374470026,1753312246938,-460.0,0.0002,2]
[374470027,1753312246951,-460.0,0.0002,2]
[374470028,1753312246964,-460.0,0.0002,2]
[374470029,1753312246978,-460.0,0.0002,2]
[374470030,1753312246991,-460.0,0.0002,2]
[374470031,1753312247004,-460.0,0.0002,2]
[374470032,1753312247019,-460.0,0.0002,2]
[374470033,1753312247032,-415.02,0.0002,2]
[374470034,1753312247045,-460.0,0.0002,2]
[374470035,1753312247056,-460.0,0.0002,2]
[374470036,1753312247069,-460.0,0.0002,2]
[374470037,1753312247081,-2615.42,0.0002,2]
[374470038,1753312247093,-460.0,0.0002,2]
[374470039,1753312247106,-460.0,0.0002,2]
[374470040,1753312247119,-460.0,0.0002,2]
[374470041,1753312247131,-3061.89,0.0002,2]
[374470042,1753312247141,-1674.34,0.0002,2]
[374470043,1753312247152,-460.0,0.0002,2]
[374470044,1753312247165,-460.0,0.0002,2]
[374470045,1753312247175,-460.0,0.0002,2]
[374470046,1753312247187,-460.0,0.0002,2]
[374470047,1753312247201,-460.0,0.0002,2]
[374470048,1753312247214,-460.0,0.0002,2]
[374470049,1753312247225,-1464.12,0.0002,2]
[374470050,1753312247239,-1278.79,0.0002,2]
[374470051,1753312247253,-460.0,0.0002,2]
[374470052,1753312247267,-460.0,0.0002,2]
[374470053,1753312247281,-460.0,0.0002,2]
[374470054,1753312247291,-410.0,0.0002,2]
[374470055,1753312247302,-460.0,0.0002,2]
[374470056,1753312247312,-460.0,0.0002,2]
[374470057,1753312247324,-861.74,0.0002,2]
[374470058,1753312247337,-460.0,0.0002,2]
[374470059,1753312247351,-460.0,0.0002,2]
[374470060,1753312247364,-460.0,0.0002,2]
[374470061,1753312247376,-460.0,0.0002,2]
[374470062,1753312247386,-460.0,0.0002,2]
[374470063,1753312247398,-460.0,0.0002,2]
[374470064,1753312247409,-460.0,0.0002,2]
[374470065,1753312247422,-460.0,0.0002,2]
[374470066,1753312247433,-460.0,0.0002,2]
[374470067,1753312247444,-460.0,0.0002,2]
[374470068,1753312247454,-917.78,0.0002,2]
[374470069,1753312247465,-460.0,0.0002,2]
[374470070,1753312247476,-460.0,0.0002,2]
[374470071,1753312247488,-460.0,0.0002,2]
[374470072,1753312247499,-460.0,0.0002,2]
[374470073,1753312247510,-460.0,0.0002,2]
[374470074,1753312247522,-1212.98,0.0002,2]
[374470075,1753312247532,-800.45,0.0002,2]
[374470076,1753312247544,-460.0,0.0002,2]
[374470077,1753312247555,-460.0,0.0002,2]
[374470078,1753312247566,-460.0,0.0002,2]
[374470079,1753312247578,-460.0,0.0002,2]
[374470080,1753312247589,-505.49,0.0002,2]
[374470081,1753312247600,-460.0,0.0002,2]
[374470082,1753312247612,-460.0,0.0002,2]
[374470083,1753312247623,-460.0,0.0002,2]
[374470084,1753312247634,-460.0,0.0002,2]
[374470085,1753312247646,-195.3981868,0.0002,2]
[374470086,1753312247657,-460.0,0.0002,2]
[374470087,1753312247669,-460.0,0.0002,2]
[374470088,1753312247680,-460.0,0.0002,2]
[374470089,1753312247692,-868.55,0.0002,2]
[374470090,1753312247707,-408.86538466,0.0002,2]
[374470091,1753312247718,-150.0,0.00020083,2]
[374470092,1753312247730,-207.122937,0.00020187,2]
[374470093,1753312247743,-1500.0,0.00020268,2]
[374470094,1753312247754,-1500.0,0.00020268,2]
[374470095,1753312247765,-1100.20592339,0.00020268,2]
[374470096,1753312247777,-500.0,0.00020268,2]
[374470097,1753312247789,-369.66091617,0.00020273,2]
[374470098,1753312247800,-460.0,0.00020273,2]
[374470099,1753312247811,-460.0,0.00020273,2]
[374470100,1753312247821,-460.0,0.00020273,2]
[374470101,1753312247833,-460.0,0.00020273,2]
[374470102,1753312247844,-460.0,0.00020273,2]
[374470103,1753312247855,-460.0,0.00020273,2]
[374470104,1753312247866,-460.0,0.00020273,2]
[374470105,1753312247877,-460.0,0.00020273,2]
[374470106,1753312247889,-460.0,0.00020273,2]
[374470107,1753312247900,-2615.42,0.00020273,2]
[374470108,1753312247912,-460.0,0.00020273,2]
[374470109,1753312247923,-460.0,0.00020273,2]
[374470110,1753312247935,-460.0,0.00020273,2]
[374470111,1753312247947,-3061.89,0.00020273,2]
[374470112,1753312247959,-1674.34,0.00020273,2]
[374470113,1753312247970,-460.0,0.00020273,2]
[374470114,1753312247982,-460.0,0.00020273,2]
[374470115,1753312247994,-529.28,0.00020273,2]
[374470116,1753312248005,-460.0,0.00020273,2]
[374470117,1753312248016,-1464.12,0.00020273,2]
[374470118,1753312248027,-1278.79,0.00020273,2]
[374470119,1753312248039,-460.0,0.00020273,2]
[374470120,1753312248051,-460.0,0.00020273,2]
[374470121,1753312248062,-460.0,0.00020273,2]
[374470122,1753312248074,-473.51,0.00020273,2]
[374470123,1753312248085,-460.0,0.00020273,2]
[374470124,1753312248096,-861.74,0.00020273,2]
[374470125,1753312248109,-460.0,0.00020273,2]
[374470126,1753312248120,-460.0,0.00020273,2]
[374470127,1753312248131,-460.0,0.00020273,2]
[374470128,1753312248143,-460.0,0.00020273,2]
[374470129,1753312248155,-460.0,0.00020273,2]
[374470130,1753312248169,-460.0,0.00020273,2]
[374470131,1753312248189,-536.39564788,0.00020273,2]
[374470132,1753312248211,-460.0,0.00020273,2]
[374470133,1753312248234,-460.0,0.00020273,2]
[374470134,1753312248255,-917.78,0.00020273,2]
[374470135,1753312248423,-460.0,0.00020273,2]
[374470136,1753312248448,-460.0,0.00020273,2]
[374470137,1753312248471,-460.0,0.00020273,2]
[374470138,1753312248488,-460.0,0.00020273,2]
[374470139,1753312248497,-262.64120775,0.00020273,2]
[374470140,1753312248507,-1212.98,0.00020273,2]
[374470141,1753312248516,-800.45,0.00020273,2]
[374470142,1753312248525,-460.0,0.00020273,2]
[374470143,1753312248534,-460.0,0.00020273,2]
[374470144,1753312248543,-460.0,0.00020273,2]
[374470145,1753312248552,-505.49,0.00020273,2]
[374470146,1753312248561,-505.49,0.00020273,2]
[374470147,1753312248570,-460.0,0.00020273,2]
[374470148,1753312248580,-460.0,0.00020273,2]
[374470149,1753312248589,-389.33480681,0.00020273,2]
[374470150,1753312248599,-460.0,0.00020273,2]
[374470151,1753312248608,-460.0,0.00020273,2]
[374470152,1753312248617,-460.0,0.00020273,2]
[374470153,1753312248627,-868.55,0.00020273,2]
[374470154,1753312248636,-260.0,0.00020439,2]
[374470155,1753312248646,-1757.12339173,0.00020509,2]
[374470156,1753312248655,-302.90913937,0.00020512,4]
[374470157,1753312248665,-160.0,0.00020516,2]
[374470158,1753312248674,-231.11583447,0.00020516,2]
[374470159,1753312248684,-12622.36869388,0.00020516,2]
[374470160,1753312248693,-215.84326551,0.00020516,2]
[374470161,1753312248711,-160.0,0.00020516,2]
[374470162,1753312248721,-160.0,0.00020516,2]
[374470163,1753312248731,-160.0,0.00020517,2]
[374470164,1753312248742,-160.0,0.00020517,2]
[374470165,1753312248751,-1716.74,0.00020538,3]
[374470166,1753312248760,-1310.16,0.00020538,3]
[374470167,1753312248770,-655.08,0.00020538,3]
[374470168,1753312248779,-327.54,0.00020538,3]
[374470169,1753312248790,-231.23,0.00020546,2]
[374470170,1753312248799,-460.0,0.00020547,2]
[374470171,1753312248808,-460.0,0.00020547,2]
[374470172,1753312248818,-460.0,0.00020547,2]
[374470173,1753312248827,-460.0,0.00020547,2]
[374470174,1753312248836,-460.0,0.00020547,2]
[374470175,1753312248845,-460.0,0.00020547,2]
[374470176,1753312248855,-460.0,0.00020547,2]
[374470177,1753312248865,-310.25,0.00020547,2]
[374470178,1753312248874,-448.17626687,0.00020547,2]
[374470179,1753312248884,-2615.42,0.00020547,2]
[374470180,1753312248894,-460.0,0.00020547,2]
[374470181,1753312248904,-460.0,0.00020547,2]
[374470182,1753312248914,-460.0,0.00020547,2]
[374470183,1753312248923,-3061.89,0.00020547,2]
[374470184,1753312248933,-1674.34,0.00020547,2]
[374470185,1753312248943,-460.0,0.00020547,2]
[374470186,1753312248952,-460.0,0.00020547,2]
[374470187,1753312248962,-460.0,0.00020547,2]
[374470188,1753312248971,-1464.12,0.00020547,2]
[374470189,1753312248980,-1278.79,0.00020547,2]
[374470190,1753312248990,-460.0,0.00020547,2]
[374470191,1753312248998,-460.0,0.00020547,2]
[374470192,1753312249007,-460.0,0.00020547,2]
[374470193,1753312249017,-460.0,0.00020547,2]
[374470194,1753312249027,-861.74,0.00020547,2]
[374470195,1753312249036,-460.0,0.00020547,2]
[374470196,1753312249046,-460.0,0.00020547,2]
[374470197,1753312249055,-460.0,0.00020547,2]
[374470198,1753312249064,-605.93802638,0.00020547,2]
[374470199,1753312249074,-460.0,0.00020547,2]
[374470200,1753312249083,-460.0,0.00020547,2]
[374470201,1753312249093,-460.0,0.00020547,2]
[374470202,1753312249103,-460.0,0.00020547,2]
[374470203,1753312249113,-917.78,0.00020547,2]
[374470204,1753312249122,-460.0,0.00020547,2]
[374470205,1753312249132,-460.0,0.00020547,2]
[374470206,1753312249141,-460.0,0.00020547,2]
[374470207,1753312249150,-343.48,0.00020547,2]
[374470208,1753312249159,-1212.98,0.00020547,2]
[374470209,1753312249170,-800.45,0.00020547,2]
[374470210,1753312249179,-460.0,0.00020547,2]
[374470211,1753312249189,-460.0,0.00020547,2]
[374470212,1753312249198,-460.0,0.00020547,2]
[374470213,1753312249207,-505.49,0.00020547,2]
[374470214,1753312249217,-460.0,0.00020547,2]
[374470215,1753312249227,-460.0,0.00020547,2]
[374470216,1753312249236,-460.0,0.00020547,2]
[374470217,1753312249246,-460.0,0.00020547,2]
[374470218,1753312249255,-868.55,0.00020547,2]
[374470219,1753312249265,-493.374,0.00020753,2]
[374470220,1753312249274,-540.84898244,0.0002077,2]
[374470221,1753312249284,-500.0,0.0002077,2]
[374470222,1753312249293,-500.0,0.0002077,2]
[374470223,1753312249302,-500.0,0.0002077,2]
[374470224,1753312249312,-500.0,0.0002077,2]
[374470225,1753312249321,-619.07791208,0.0002077,2]
[374470226,1753312249331,-500.0,0.0002077,2]
[374470227,1753312249340,-500.0,0.0002077,2]
[374470228,1753312249350,-500.0,0.0002077,2]
[374470229,1753312249359,-500.0,0.0002077,2]
[374470230,1753312249368,-500.0,0.00020794,2]
[374470231,1753312249378,-1500.0,0.00020816,2]
[374470232,1753312249387,-2000.0,0.00020816,2]
[374470233,1753312249396,-460.0,0.00020821,2]
[374470234,1753312249406,-460.0,0.00020821,2]
[374470235,1753312249416,-460.0,0.00020821,2]
[374470236,1753312249426,-460.0,0.00020821,2]
[374470237,1753312249435,-460.0,0.00020821,2]
[374470238,1753312249444,-460.0,0.00020821,2]
[374470239,1753312249454,-2615.42,0.00020821,2]
[374470240,1753312249463,-460.0,0.00020821,2]
[374470241,1753312249473,-460.0,0.00020821,2]
[374470242,1753312249483,-460.0,0.00020821,2]
[374470243,1753312249492,-3061.89,0.00020821,2]
[374470244,1753312249502,-1674.34,0.00020821,2]
[374470245,1753312249511,-460.0,0.00020821,2]
[374470246,1753312249521,-460.0,0.00020821,2]
[374470247,1753312249531,-460.0,0.00020821,2]
[374470248,1753312249540,-1464.12,0.00020821,2]
[374470249,1753312249550,-1278.79,0.00020821,2]
[374470250,1753312249559,-460.0,0.00020821,2]
[374470251,1753312249569,-460.0,0.00020821,2]
[374470252,1753312249578,-460.0,0.00020821,2]
[374470253,1753312249588,-334.57980921,0.00020821,2]
[374470254,1753312249597,-861.74,0.00020821,2]
[374470255,1753312249607,-460.0,0.00020821,2]
[374470256,1753312249616,-460.0,0.00020821,2]
[374470257,1753312249625,-460.0,0.00020821,2]
[374470258,1753312249634,-460.0,0.00020821,2]
[374470259,1753312249644,-460.0,0.00020821,2]
[374470260,1753312249653,-460.0,0.00020821,2]
[374470261,1753312249663,-240.52304691,0.00020821,2]
[374470262,1753312249672,-917.78,0.00020821,2]
[374470263,1753312249682,-460.0,0.00020821,2]
[374470264,1753312249691,-206.02,0.00020821,2]
[374470265,1753312249704,-460.0,0.00020821,2]
[374470266,1753312249713,-1212.98,0.00020821,2]
[374470267,1753312249724,-800.45,0.00020821,2]
[374470268,1753312249733,-460.0,0.00020821,2]
[374470269,1753312249745,-460.0,0.00020821,2]
[374470270,1753312249754,-460.0,0.00020821,2]
[374470271,1753312249764,-505.49,0.00020821,2]
[374470272,1753312249773,-460.0,0.00020821,2]
[374470273,1753312249783,-460.0,0.00020821,2]
[374470274,1753312249793,-460.0,0.00020821,2]
[374470275,1753312249803,-460.0,0.00020821,2]
[374470276,1753312249813,-868.55,0.00020821,2]
[374470277,1753312249822,-216.71317498,0.00020849,2]
[374470278,1753312249832,-360.0,0.00020987,2]
[374470279,1753312249842,-150.0,0.00020996,2]
[374470280,1753312249851,-460.0,0.00021095,2]
[374470281,1753312249863,-460.0,0.00021095,2]
[374470282,1753312249872,-221.77,0.00021095,2]
[374470283,1753312249882,-460.0,0.00021095,2]
[374470284,1753312249892,-460.0,0.00021095,2]
[374470285,1753312249902,-2615.42,0.00021095,2]
[374470286,1753312249912,-460.0,0.00021095,2]
[374470287,1753312249922,-460.0,0.00021095,2]
[374470288,1753312249931,-460.0,0.00021095,2]
[374470289,1753312249941,-3061.89,0.00021095,2]
[374470290,1753312249950,-1674.34,0.00021095,2]
[374470291,1753312249960,-460.0,0.00021095,2]
[374470292,1753312249970,-460.0,0.00021095,2]
[374470293,1753312249979,-460.0,0.00021095,2]
[374470294,1753312249989,-1464.12,0.00021095,2]
[374470295,1753312249999,-1278.79,0.00021095,2]
[374470296,1753312250009,-460.0,0.00021095,2]
[374470297,1753312250019,-460.0,0.00021095,2]
[374470298,1753312250028,-460.0,0.00021095,2]
[374470299,1753312250038,-861.74,0.00021095,2]
[374470300,1753312250048,-460.0,0.00021095,2]
[374470301,1753312250058,-563.03834934,0.00021095,2]
[374470302,1753312250068,-460.0,0.00021095,2]
[374470303,1753312250078,-460.0,0.00021095,2]
[374470304,1753312250087,-460.0,0.00021095,2]
[374470305,1753312250097,-460.0,0.00021095,2]
[374470306,1753312250107,-917.78,0.00021095,2]
[374470307,1753312250116,-485.07599321,0.00021095,2]
[374470308,1753312250126,-460.0,0.00021095,2]
[374470309,1753312250135,-1212.98,0.00021095,2]
[374470310,1753312250145,-800.45,0.00021095,2]
[374470311,1753312250155,-460.0,0.00021095,2]
[374470312,1753312250166,-415.02,0.00021095,2]
[374470313,1753312250175,-460.0,0.00021095,2]
[374470314,1753312250185,-460.0,0.00021095,2]
[374470315,1753312250195,-505.49,0.00021095,2]
[374470316,1753312250204,-460.0,0.00021095,2]
[374470317,1753312250214,-460.0,0.00021095,2]
[374470318,1753312250224,-460.0,0.00021095,2]
[374470319,1753312250234,-868.55,0.00021095,2]
[374470320,1753312250244,-151.0,0.000213,4]
[374470321,1753312250253,-350.0,0.00021317,2]
[374470322,1753312250263,-500.0,0.00021317,2]
[374470323,1753312250273,-500.0,0.00021317,2]
[374470324,1753312250282,-500.0,0.00021317,2]
[374470325,1753312250292,-597.99224489,0.00021318,2]
[374470326,1753312250301,-500.0,0.00021318,2]
[374470327,1753312250310,-1000.0,0.00021318,2]
[374470328,1753312250320,-500.0,0.00021318,2]
[374470329,1753312250330,-1000.0,0.00021318,2]
[374470330,1753312250340,-504.74859818,0.00021335,2]
[374470331,1753312250350,-500.0,0.00021335,2]
[374470332,1753312250359,-500.0,0.00021335,2]
[374470333,1753312250368,-540.13657752,0.00021335,2]
[374470334,1753312250378,-500.0,0.00021335,2]
[374470335,1753312250387,-500.71124233,0.00021335,2]
[374470336,1753312250396,-500.0,0.00021335,2]
[374470337,1753312250406,-500.0,0.00021335,2]
[374470338,1753312250416,-161.66149391,0.00021335,2]
[374470339,1753312250425,-168.06222679,0.00021335,2]
[374470340,1753312250435,-500.0,0.00021335,2]
[374470341,1753312250444,-500.0,0.00021335,2]
[374470342,1753312250454,-500.0,0.00021335,2]
[374470343,1753312250463,-500.0,0.00021335,2]
[374470344,1753312250472,-500.0,0.00021335,2]
[374470345,1753312250481,-500.0,0.00021335,2]
[374470346,1753312250491,-502.478894,0.00021335,2]
[374470347,1753312250500,-500.0,0.00021335,2]
[374470348,1753312250509,-500.0,0.00021362,2]
[374470349,1753312250519,-460.0,0.00021369,2]
[374470350,1753312250528,-460.0,0.00021369,2]
[374470351,1753312250538,-460.0,0.00021369,2]
[374470352,1753312250548,-2615.42,0.00021369,2]
[374470353,1753312250558,-460.0,0.00021369,2]
[374470354,1753312250567,-460.0,0.00021369,2]
[374470355,1753312250577,-460.0,0.00021369,2]
[374470356,1753312250587,-3061.89,0.00021369,2]